[Event "Titled Tuesday Blitz May 16 Early 2023"]
[White "Tasev, Dejan"]
[Black "Jodorcovsky Werjivker, Paulo"]
[WhiteFideId "936618"]
[BlackFideId "3700305"]
[WhiteElo "2244"]
[BlackElo "2120"]
[Result "1-0"]
[Round "03"]
[TimeControl "180+2"]
[Date "2023.05.16"]
[WhiteClock "0:00:07"]
[BlackClock "0:00:00"]

1. e4 {[%clk 0:03:00]}  e5 {[%clk 0:02:59]} 2. Nf3 {[%clk 0:03:00]}  Nc6 {[%clk 0:02:59]} 3. Bb5 {[%clk 0:03:00]}  a6 {[%clk 0:02:59]} 4. Ba4 {[%clk 0:03:00]}  Nf6 {[%clk 0:02:59]} 5. O-O {[%clk 0:02:59]}  Be7 {[%clk 0:02:59]} 6. Re1 {[%clk 0:02:59]}  b5 {[%clk 0:02:59]} 7. Bb3 {[%clk 0:02:59]}  O-O {[%clk 0:02:59]} 8. c3 {[%clk 0:02:59]}  d5 {[%clk 0:02:59]} 9. exd5 {[%clk 0:02:59]}  Nxd5 {[%clk 0:03:00]} 10. Nxe5 {[%clk 0:02:59]}  Nxe5 {[%clk 0:03:01]} 11. Rxe5 {[%clk 0:02:59]}  c6 {[%clk 0:03:01]} 12. d4 {[%clk 0:02:59]}  Bd6 {[%clk 0:03:01]} 13. Re1 {[%clk 0:02:59]}  Qh4 {[%clk 0:03:01]} 14. g3 {[%clk 0:03:00]}  Qh3 {[%clk 0:03:01]} 15. Be3 {[%clk 0:03:00]}  Bg4 {[%clk 0:02:58]} 16. Qd3 {[%clk 0:03:00]}  Rae8 {[%clk 0:02:58]} 17. Nd2 {[%clk 0:02:59]}  Re6 {[%clk 0:02:40]} 18. Qf1 {[%clk 0:02:54]}  Qh5 {[%clk 0:02:37]} 19. a4 {[%clk 0:02:50]}  b4 {[%clk 0:02:22]} 20. Qg2 {[%clk 0:02:20]}  bxc3 {[%clk 0:01:54]} 21. bxc3 {[%clk 0:02:19]}  Rfe8 {[%clk 0:01:51]} 22. Bxd5 {[%clk 0:01:51]}  cxd5 {[%clk 0:01:52]} 23. Rab1 {[%clk 0:01:41]}  Rc8 {[%clk 0:01:34]} 24. c4 {[%clk 0:01:21]}  dxc4 {[%clk 0:01:28]} 25. d5 {[%clk 0:01:02]}  Re7 {[%clk 0:01:04]} 26. Rec1 {[%clk 0:00:47]}  c3 {[%clk 0:00:59]} 27. Ne4 {[%clk 0:00:25]}  c2 {[%clk 0:00:09]} 28. Nxd6 {[%clk 0:00:20]}  cxb1=Q {[%clk 0:00:09]} 29. Rxb1 {[%clk 0:00:20]}  Rd8 {[%clk 0:00:07]} 30. Nb7 {[%clk 0:00:19]}  Rxb7 {[%clk 0:00:06]} 31. Rxb7 {[%clk 0:00:18]}  Bf3 {[%clk 0:00:07]} 32. Qf1 {[%clk 0:00:18]}  Qxd5 {[%clk 0:00:07]} 33. Rb1 {[%clk 0:00:15]}  Qh5 {[%clk 0:00:05]} 34. h4 {[%clk 0:00:15]}  h6 {[%clk 0:00:05]} 35. Kh2 {[%clk 0:00:15]}  Qg4 {[%clk 0:00:05]} 36. Qh3 {[%clk 0:00:15]}  Qe4 {[%clk 0:00:05]} 37. Re1 {[%clk 0:00:14]}  Bg4 {[%clk 0:00:06]} 38. Qg2 {[%clk 0:00:15]}  Bf3 {[%clk 0:00:06]} 39. Qf1 {[%clk 0:00:15]}  Rd3 {[%clk 0:00:06]} 40. Rc1 {[%clk 0:00:14]}  Kh7 {[%clk 0:00:06]} 41. Re1 {[%clk 0:00:12]}  Qf5 {[%clk 0:00:05]} 42. Bc1 {[%clk 0:00:11]}  Rd4 {[%clk 0:00:04]} 43. Be3 {[%clk 0:00:10]}  Re4 {[%clk 0:00:04]} 44. Qxa6 {[%clk 0:00:09]}  Bg4 {[%clk 0:00:03]} 45. Qf1 {[%clk 0:00:09]}  Qf3 {[%clk 0:00:03]} 46. a5 {[%clk 0:00:08]}  Qf5 {[%clk 0:00:03]} 47. a6 {[%clk 0:00:08]}  Ra4 {[%clk 0:00:04]} 48. a7 {[%clk 0:00:07]}  Bf3 {[%clk 0:00:04]} 49. Qh3 {[%clk 0:00:07]}  Qd5 {[%clk 0:00:03]} 50. Qc8 {[%clk 0:00:07]}  Ra5 {[%clk 0:00:02]} 51. Qc2+ {[%clk 0:00:07]}  Qe4 {[%clk 0:00:02]} 52. Qxe4+ {[%clk 0:00:06]}  Bxe4 {[%clk 0:00:03]} 53. Bb6 {[%clk 0:00:07]}  Ra4 {[%clk 0:00:00]} 54. Rxe4 {[%clk 0:00:07]} 1-0


[Site "https://www.chess.com"]

[Event "Titled Tuesday Blitz May 16 Early 2023"]
[White "Garrido, Denis"]
[Black "Altman, Joshua"]
[WhiteFideId "601217"]
[BlackFideId "426210"]
[WhiteElo "2267"]
[BlackElo "2028"]
[Result "1-0"]
[Round "03"]
[TimeControl "180+2"]
[Date "2023.05.16"]
[WhiteClock "0:02:06"]
[BlackClock "0:01:21"]

1. e4 {[%clk 0:03:00]}  e6 {[%clk 0:03:00]} 2. d4 {[%clk 0:03:00]}  d5 {[%clk 0:03:00]} 3. exd5 {[%clk 0:03:00]}  exd5 {[%clk 0:03:01]} 4. Nf3 {[%clk 0:03:00]}  Nf6 {[%clk 0:03:01]} 5. Bd3 {[%clk 0:03:00]}  Bd6 {[%clk 0:03:01]} 6. O-O {[%clk 0:03:00]}  O-O {[%clk 0:03:01]} 7. h3 {[%clk 0:03:01]}  h6 {[%clk 0:03:01]} 8. Nc3 {[%clk 0:03:01]}  c6 {[%clk 0:03:01]} 9. Ne5 {[%clk 0:03:01]}  Nbd7 {[%clk 0:03:01]} 10. Bf4 {[%clk 0:03:01]}  Qc7 {[%clk 0:03:00]} 11. Re1 {[%clk 0:03:01]}  Re8 {[%clk 0:02:59]} 12. Qf3 {[%clk 0:03:01]}  Nxe5 {[%clk 0:02:53]} 13. dxe5 {[%clk 0:03:02]}  Bxe5 {[%clk 0:02:53]} 14. Rxe5 {[%clk 0:03:01]}  Rxe5 {[%clk 0:02:49]} 15. Qg3 {[%clk 0:03:01]}  Nd7 {[%clk 0:02:30]} 16. Bxh6 {[%clk 0:03:01]}  Re1+ {[%clk 0:02:06]} 17. Rxe1 {[%clk 0:03:01]}  Qxg3 {[%clk 0:02:06]} 18. Re8+ {[%clk 0:02:59]}  Nf8 {[%clk 0:02:05]} 19. fxg3 {[%clk 0:02:58]}  gxh6 {[%clk 0:02:06]} 20. Bf5 {[%clk 0:02:51]}  d4 {[%clk 0:01:53]} 21. Ne2 {[%clk 0:02:42]}  Bxf5 {[%clk 0:01:43]} 22. Rxa8 {[%clk 0:02:42]}  Bxc2 {[%clk 0:01:43]} 23. Nxd4 {[%clk 0:02:41]}  Be4 {[%clk 0:01:43]} 24. Rxa7 {[%clk 0:02:38]}  c5 {[%clk 0:01:37]} 25. Ne2 {[%clk 0:02:31]}  Ne6 {[%clk 0:01:34]} 26. Kf2 {[%clk 0:02:29]}  b5 {[%clk 0:01:32]} 27. b3 {[%clk 0:02:25]}  Kg7 {[%clk 0:01:31]} 28. a4 {[%clk 0:02:25]}  b4 {[%clk 0:01:30]} 29. a5 {[%clk 0:02:23]}  Bd5 {[%clk 0:01:29]} 30. Nc1 {[%clk 0:02:17]}  Nd4 {[%clk 0:01:29]} 31. Rc7 {[%clk 0:02:15]}  Ne6 {[%clk 0:01:15]} 32. Rd7 {[%clk 0:02:13]}  Bc6 {[%clk 0:01:13]} 33. Rd6 {[%clk 0:02:12]}  Nd4 {[%clk 0:01:12]} 34. a6 {[%clk 0:02:09]}  Kf8 {[%clk 0:01:13]} 35. a7 {[%clk 0:02:08]}  Ke7 {[%clk 0:01:13]} 36. Rxc6 {[%clk 0:02:09]}  Nxc6 {[%clk 0:01:12]} 37. a8=Q {[%clk 0:02:09]}  Nd4 {[%clk 0:01:13]} 38. Qd5 {[%clk 0:02:08]}  Ne6 {[%clk 0:01:13]} 39. Nd3 {[%clk 0:02:08]}  Nd4 {[%clk 0:01:13]} 40. Qxc5+ {[%clk 0:02:08]}  Kf6 {[%clk 0:01:14]} 41. Qxd4+ {[%clk 0:02:08]}  Kg6 {[%clk 0:01:15]} 42. Nxb4 {[%clk 0:02:08]}  Kh7 {[%clk 0:01:15]} 43. Nd3 {[%clk 0:02:08]}  f6 {[%clk 0:01:16]} 44. b4 {[%clk 0:02:09]}  h5 {[%clk 0:01:17]} 45. b5 {[%clk 0:02:09]}  h4 {[%clk 0:01:18]} 46. Qxh4+ {[%clk 0:02:09]}  Kg7 {[%clk 0:01:18]} 47. b6 {[%clk 0:02:10]}  f5 {[%clk 0:01:19]} 48. b7 {[%clk 0:02:11]}  f4 {[%clk 0:01:20]} 49. Qxf4 {[%clk 0:02:10]}  Kg6 {[%clk 0:01:20]} 50. b8=Q {[%clk 0:02:08]}  Kh5 {[%clk 0:01:20]} 51. Qh8+ {[%clk 0:02:08]}  Kg6 {[%clk 0:01:21]} 52. Qff6# {[%clk 0:02:06]} 1-0


[Site "https://www.chess.com"]

[Event "Titled Tuesday Blitz May 16 Early 2023"]
[White "Thecourseoisildur"]
[Black "mjelcic"]
[WhiteElo "2551"]
[BlackElo "2249"]
[Result "1-0"]
[Round "03"]
[TimeControl "180+2"]
[Date "2023.05.16"]
[WhiteClock "0:00:53"]
[BlackClock "0:00:22"]

1. e4 {[%clk 0:03:00]}  g6 {[%clk 0:02:57]} 2. d4 {[%clk 0:03:00]}  Bg7 {[%clk 0:02:58]} 3. Nc3 {[%clk 0:03:01]}  d6 {[%clk 0:02:58]} 4. Bf4 {[%clk 0:02:58]}  Nd7 {[%clk 0:02:53]} 5. Qd2 {[%clk 0:02:54]}  a6 {[%clk 0:02:53]} 6. Nf3 {[%clk 0:02:28]}  b5 {[%clk 0:02:53]} 7. a4 {[%clk 0:02:27]}  b4 {[%clk 0:02:50]} 8. Nd5 {[%clk 0:02:26]}  a5 {[%clk 0:02:49]} 9. c3 {[%clk 0:02:25]}  c6 {[%clk 0:02:46]} 10. Ne3 {[%clk 0:02:23]}  bxc3 {[%clk 0:02:35]} 11. Qxc3 {[%clk 0:02:18]}  Qb6 {[%clk 0:02:31]} 12. Rc1 {[%clk 0:01:50]}  c5 {[%clk 0:02:29]} 13. Nd5 {[%clk 0:01:49]}  Qa7 {[%clk 0:02:16]} 14. Bb5 {[%clk 0:01:46]}  Ba6 {[%clk 0:02:07]} 15. Bxa6 {[%clk 0:01:44]}  e6 {[%clk 0:02:03]} 16. Bb5 {[%clk 0:01:11]}  exd5 {[%clk 0:02:02]} 17. exd5 {[%clk 0:01:12]}  cxd4 {[%clk 0:01:47]} 18. Qc6 {[%clk 0:01:04]}  Ne7 {[%clk 0:01:45]} 19. Qxd6 {[%clk 0:00:59]}  Nf5 {[%clk 0:01:28]} 20. Qc7 {[%clk 0:00:55]}  Qxc7 {[%clk 0:01:09]} 21. Rxc7 {[%clk 0:00:56]}  Rd8 {[%clk 0:00:55]} 22. O-O {[%clk 0:00:55]}  Ne7 {[%clk 0:00:39]} 23. Re1 {[%clk 0:00:54]}  Bf6 {[%clk 0:00:22]} 24. d6 {[%clk 0:00:53]} 1-0


[Site "https://www.chess.com"]

[Event "Titled Tuesday Blitz May 16 Early 2023"]
[White "koncheto"]
[Black "Wimalasuriya, Kasun M."]
[BlackFideId "9906789"]
[WhiteElo "2550"]
[BlackElo "2240"]
[Result "1-0"]
[Round "03"]
[TimeControl "180+2"]
[Date "2023.05.16"]
[WhiteClock "0:02:15"]
[BlackClock "0:02:14"]

1. e4 {[%clk 0:03:00]}  c5 {[%clk 0:02:59]} 2. Nf3 {[%clk 0:03:01]}  Nc6 {[%clk 0:02:58]} 3. d4 {[%clk 0:03:00]}  cxd4 {[%clk 0:02:58]} 4. Nxd4 {[%clk 0:03:01]}  e5 {[%clk 0:02:57]} 5. Nb3 {[%clk 0:03:01]}  Nf6 {[%clk 0:02:56]} 6. f3 {[%clk 0:03:02]}  d5 {[%clk 0:02:56]} 7. Bg5 {[%clk 0:03:02]}  d4 {[%clk 0:02:52]} 8. c3 {[%clk 0:03:02]}  Be7 {[%clk 0:02:46]} 9. Bb5 {[%clk 0:02:58]}  dxc3 {[%clk 0:02:43]} 10. Qxd8+ {[%clk 0:02:56]}  Bxd8 {[%clk 0:02:43]} 11. Nxc3 {[%clk 0:02:56]}  Bd7 {[%clk 0:02:43]} 12. O-O-O {[%clk 0:02:56]}  a6 {[%clk 0:02:39]} 13. Be2 {[%clk 0:02:40]}  Rc8 {[%clk 0:02:38]} 14. Nc5 {[%clk 0:02:34]}  Rc7 {[%clk 0:02:36]} 15. Bxf6 {[%clk 0:02:31]}  Bxf6 {[%clk 0:02:36]} 16. Nd5 {[%clk 0:02:32]}  Rc8 {[%clk 0:02:14]} 17. Nb6 {[%clk 0:02:15]} 1-0


[Site "https://www.chess.com"]

[Event "Titled Tuesday Blitz May 16 Early 2023"]
[White "Fiorito, Joaquin"]
[Black "Da Matta, Eduardo Cesar"]
[WhiteFideId "180173"]
[BlackFideId "2193108"]
[WhiteElo "2157"]
[BlackElo "1981"]
[Result "1-0"]
[Round "03"]
[TimeControl "180+2"]
[Date "2023.05.16"]
[WhiteClock "0:01:38"]
[BlackClock "0:00:42"]

1. d4 {[%clk 0:03:00]}  d5 {[%clk 0:02:59]} 2. c4 {[%clk 0:03:00]}  c6 {[%clk 0:03:00]} 3. Nc3 {[%clk 0:02:59]}  Nf6 {[%clk 0:03:00]} 4. Nf3 {[%clk 0:02:59]}  dxc4 {[%clk 0:03:00]} 5. a4 {[%clk 0:02:58]}  Bf5 {[%clk 0:03:01]} 6. Ne5 {[%clk 0:02:57]}  e6 {[%clk 0:02:57]} 7. Nxc4 {[%clk 0:02:57]}  Bb4 {[%clk 0:02:55]} 8. e3 {[%clk 0:02:55]}  O-O {[%clk 0:02:53]} 9. f3 {[%clk 0:02:46]}  Bg6 {[%clk 0:02:49]} 10. e4 {[%clk 0:02:44]}  Nbd7 {[%clk 0:02:48]} 11. Be3 {[%clk 0:02:43]}  Qe7 {[%clk 0:02:46]} 12. Be2 {[%clk 0:02:35]}  e5 {[%clk 0:02:44]} 13. dxe5 {[%clk 0:02:26]}  Nxe5 {[%clk 0:02:42]} 14. Nxe5 {[%clk 0:02:22]}  Qxe5 {[%clk 0:02:43]} 15. Qd4 {[%clk 0:02:22]}  Qe7 {[%clk 0:02:39]} 16. O-O {[%clk 0:02:17]}  Rfd8 {[%clk 0:02:32]} 17. Qc4 {[%clk 0:02:17]}  a6 {[%clk 0:02:25]} 18. a5 {[%clk 0:02:16]}  Nd7 {[%clk 0:02:19]} 19. Ra4 {[%clk 0:02:08]}  Bd6 {[%clk 0:02:13]} 20. f4 {[%clk 0:02:08]}  Nc5 {[%clk 0:02:01]} 21. f5 {[%clk 0:01:49]}  Nxa4 {[%clk 0:01:50]} 22. Qxa4 {[%clk 0:01:45]}  Qh4 {[%clk 0:01:28]} 23. e5 {[%clk 0:01:44]}  Qxa4 {[%clk 0:01:04]} 24. Nxa4 {[%clk 0:01:45]}  Bxe5 {[%clk 0:01:04]} 25. fxg6 {[%clk 0:01:45]}  hxg6 {[%clk 0:01:05]} 26. Bc4 {[%clk 0:01:45]}  Bf6 {[%clk 0:00:59]} 27. Nb6 {[%clk 0:01:46]}  Rab8 {[%clk 0:00:52]} 28. Bf4 {[%clk 0:01:46]}  Bd4+ {[%clk 0:00:42]} 29. Kh1 {[%clk 0:01:46]}  Bxb6 {[%clk 0:00:43]} 30. Bxb8 {[%clk 0:01:38]}  Bxa5 {[%clk 0:00:42]} 1-0


[Site "https://www.chess.com"]

[Event "Titled Tuesday Blitz May 16 Early 2023"]
[White "Molina, Roberto Junio Brito"]
[Black "Maluco_do_Natal_00"]
[WhiteFideId "2109450"]
[WhiteElo "2376"]
[BlackElo "2018"]
[Result "1-0"]
[Round "03"]
[TimeControl "180+2"]
[Date "2023.05.16"]
[WhiteClock "0:02:05"]
[BlackClock "0:00:00"]

1. e4 {[%clk 0:03:00]}  c5 {[%clk 0:00:34]} 2. b4 {[%clk 0:02:58]}  cxb4 {[%clk 0:00:31]} 3. a3 {[%clk 0:02:58]}  Nc6 {[%clk 0:00:31]} 4. axb4 {[%clk 0:02:58]}  d6 {[%clk 0:00:25]} 5. b5 {[%clk 0:02:58]}  Ne5 {[%clk 0:00:25]} 6. d4 {[%clk 0:02:57]}  Ng6 {[%clk 0:00:25]} 7. h4 {[%clk 0:02:53]}  h5 {[%clk 0:00:20]} 8. Be2 {[%clk 0:02:51]}  Nf6 {[%clk 0:00:16]} 9. Nc3 {[%clk 0:02:49]}  e6 {[%clk 0:00:13]} 10. Nf3 {[%clk 0:02:47]}  Be7 {[%clk 0:00:12]} 11. Bg5 {[%clk 0:02:41]}  a6 {[%clk 0:00:12]} 12. e5 {[%clk 0:02:31]}  Nd5 {[%clk 0:00:08]} 13. Nxd5 {[%clk 0:02:30]}  exd5 {[%clk 0:00:07]} 14. Bxe7 {[%clk 0:02:29]}  Qxe7 {[%clk 0:00:07]} 15. exd6 {[%clk 0:02:28]}  Qxd6 {[%clk 0:00:06]} 16. O-O {[%clk 0:02:26]}  Bg4 {[%clk 0:00:06]} 17. Re1 {[%clk 0:02:25]}  O-O {[%clk 0:00:05]} 18. Ne5 {[%clk 0:02:20]}  Nxe5 {[%clk 0:00:04]} 19. dxe5 {[%clk 0:02:20]}  Qe6 {[%clk 0:00:04]} 20. Bxg4 {[%clk 0:02:19]}  Qxg4 {[%clk 0:00:04]} 21. Qxd5 {[%clk 0:02:12]}  Qxh4 {[%clk 0:00:03]} 22. Qxb7 {[%clk 0:02:11]}  Rae8 {[%clk 0:00:03]} 23. bxa6 {[%clk 0:02:09]}  Re6 {[%clk 0:00:01]} 24. a7 {[%clk 0:02:06]}  Rg6 {[%clk 0:00:00]} 25. a8=Q {[%clk 0:02:05]} 1-0


[Site "https://www.chess.com"]

[Event "Titled Tuesday Blitz May 16 Early 2023"]
[White "Omariev, Maksim"]
[Black "Panesar Vedant"]
[WhiteFideId "4193423"]
[BlackFideId "35033018"]
[WhiteElo "2409"]
[BlackElo "2347"]
[Result "0-1"]
[Round "03"]
[TimeControl "180+2"]
[Date "2023.05.16"]
[WhiteClock "0:00:03"]
[BlackClock "0:02:00"]

1. e4 {[%clk 0:03:00]}  e5 {[%clk 0:03:00]} 2. Nf3 {[%clk 0:03:01]}  Nc6 {[%clk 0:03:01]} 3. Bb5 {[%clk 0:03:01]}  a6 {[%clk 0:03:01]} 4. Ba4 {[%clk 0:03:01]}  d6 {[%clk 0:03:02]} 5. O-O {[%clk 0:03:01]}  Bd7 {[%clk 0:03:02]} 6. c3 {[%clk 0:03:00]}  g6 {[%clk 0:03:03]} 7. d4 {[%clk 0:03:00]}  Bg7 {[%clk 0:03:04]} 8. d5 {[%clk 0:02:55]}  Nce7 {[%clk 0:03:04]} 9. c4 {[%clk 0:02:56]}  b5 {[%clk 0:03:02]} 10. Bb3 {[%clk 0:02:42]}  f5 {[%clk 0:03:01]} 11. Ng5 {[%clk 0:02:29]}  Nf6 {[%clk 0:03:00]} 12. c5 {[%clk 0:01:35]}  O-O {[%clk 0:02:47]} 13. Nc3 {[%clk 0:01:12]}  b4 {[%clk 0:02:46]} 14. Ne2 {[%clk 0:01:03]}  h6 {[%clk 0:02:46]} 15. cxd6 {[%clk 0:00:55]}  cxd6 {[%clk 0:02:46]} 16. Ne6 {[%clk 0:00:55]}  Bxe6 {[%clk 0:02:46]} 17. dxe6 {[%clk 0:00:56]}  Nxe4 {[%clk 0:02:47]} 18. Ng3 {[%clk 0:00:42]}  Nxg3 {[%clk 0:02:45]} 19. hxg3 {[%clk 0:00:43]}  d5 {[%clk 0:02:45]} 20. Bd2 {[%clk 0:00:37]}  Qd6 {[%clk 0:02:45]} 21. a3 {[%clk 0:00:34]}  bxa3 {[%clk 0:02:44]} 22. bxa3 {[%clk 0:00:35]}  Qxe6 {[%clk 0:02:45]} 23. Bb4 {[%clk 0:00:34]}  Rad8 {[%clk 0:02:40]} 24. Bxe7 {[%clk 0:00:33]}  Qxe7 {[%clk 0:02:41]} 25. Bxd5+ {[%clk 0:00:33]}  Kh7 {[%clk 0:02:42]} 26. Qb3 {[%clk 0:00:33]}  e4 {[%clk 0:02:42]} 27. Rad1 {[%clk 0:00:29]}  Rb8 {[%clk 0:02:40]} 28. Qa4 {[%clk 0:00:28]}  Rf6 {[%clk 0:02:38]} 29. Rfe1 {[%clk 0:00:27]}  Rd6 {[%clk 0:02:33]} 30. Bc4 {[%clk 0:00:25]}  Rb2 {[%clk 0:02:16]} 31. Bxa6 {[%clk 0:00:21]}  Rxd1 {[%clk 0:02:15]} 32. Rxd1 {[%clk 0:00:20]}  Qa7 {[%clk 0:02:14]} 33. Rf1 {[%clk 0:00:14]}  Bd4 {[%clk 0:02:12]} 34. Bb5 {[%clk 0:00:12]}  Bxf2+ {[%clk 0:02:12]} 35. Kh2 {[%clk 0:00:12]}  Qxa4 {[%clk 0:02:10]} 36. Bxa4 {[%clk 0:00:12]}  e3 {[%clk 0:02:10]} 37. Bd1 {[%clk 0:00:11]}  e2 {[%clk 0:02:08]} 38. Rxf2 {[%clk 0:00:11]}  exd1=Q {[%clk 0:02:08]} 39. Rxb2 {[%clk 0:00:12]}  h5 {[%clk 0:02:09]} 40. Rb4 {[%clk 0:00:12]}  Qd6 {[%clk 0:02:08]} 41. Ra4 {[%clk 0:00:09]}  Kh6 {[%clk 0:02:08]} 42. Kh3 {[%clk 0:00:07]}  Kg5 {[%clk 0:02:08]} 43. Rb4 {[%clk 0:00:05]}  Qd3 {[%clk 0:02:08]} 44. Ra4 {[%clk 0:00:05]}  h4 {[%clk 0:02:07]} 45. Rxh4 {[%clk 0:00:04]}  Qxa3 {[%clk 0:02:08]} 46. Rf4 {[%clk 0:00:05]}  Kf6 {[%clk 0:02:08]} 47. Rh4 {[%clk 0:00:04]}  g5 {[%clk 0:02:08]} 48. Rd4 {[%clk 0:00:05]}  Ke5 {[%clk 0:02:09]} 49. Rd1 {[%clk 0:00:05]}  g4+ {[%clk 0:02:09]} 50. Kh2 {[%clk 0:00:05]}  Qc3 {[%clk 0:02:09]} 51. Rf1 {[%clk 0:00:05]}  Qd2 {[%clk 0:02:08]} 52. Kg1 {[%clk 0:00:04]}  Qd3 {[%clk 0:02:05]} 53. Kf2 {[%clk 0:00:03]}  Ke4 {[%clk 0:02:03]} 54. Re1+ {[%clk 0:00:03]}  Kd4 {[%clk 0:02:04]} 55. Re2 {[%clk 0:00:02]}  Qd1 {[%clk 0:02:04]} 56. Re1 {[%clk 0:00:02]}  Qb3 {[%clk 0:02:02]} 57. Re2 {[%clk 0:00:02]}  Qb6 {[%clk 0:02:02]} 58. Kg1 {[%clk 0:00:02]}  Kd3+ {[%clk 0:02:02]} 59. Rf2 {[%clk 0:00:03]}  Qd4 {[%clk 0:01:59]} 60. Kf1 {[%clk 0:00:03]}  Qa1# {[%clk 0:02:00]} 0-1


[Site "https://www.chess.com"]

[Event "Titled Tuesday Blitz May 16 Early 2023"]
[White "Sharapov, Evgeny"]
[Black "Itkis, Boris"]
[WhiteFideId "14103133"]
[BlackFideId "1209167"]
[WhiteElo "2367"]
[BlackElo "2216"]
[Result "0-1"]
[Round "03"]
[TimeControl "180+2"]
[Date "2023.05.16"]
[WhiteClock "0:01:38"]
[BlackClock "0:00:10"]

1. e4 {[%clk 0:03:00]}  c5 {[%clk 0:02:57]} 2. Nf3 {[%clk 0:02:59]}  Nc6 {[%clk 0:02:58]} 3. d4 {[%clk 0:02:59]}  cxd4 {[%clk 0:02:58]} 4. Nxd4 {[%clk 0:03:00]}  g6 {[%clk 0:02:57]} 5. c4 {[%clk 0:02:59]}  Bg7 {[%clk 0:02:57]} 6. Be3 {[%clk 0:02:59]}  Nf6 {[%clk 0:02:56]} 7. Nc3 {[%clk 0:02:59]}  O-O {[%clk 0:02:57]} 8. Be2 {[%clk 0:02:59]}  d6 {[%clk 0:02:57]} 9. O-O {[%clk 0:02:58]}  Bd7 {[%clk 0:02:55]} 10. f3 {[%clk 0:02:58]}  Rc8 {[%clk 0:02:53]} 11. Qd2 {[%clk 0:02:58]}  a6 {[%clk 0:02:50]} 12. a4 {[%clk 0:02:57]}  Nxd4 {[%clk 0:02:32]} 13. Bxd4 {[%clk 0:02:57]}  Be6 {[%clk 0:02:32]} 14. Nd5 {[%clk 0:02:56]}  Nxd5 {[%clk 0:02:19]} 15. cxd5 {[%clk 0:02:56]}  Bd7 {[%clk 0:02:16]} 16. a5 {[%clk 0:02:41]}  Bxd4+ {[%clk 0:01:51]} 17. Qxd4 {[%clk 0:02:41]}  Qc7 {[%clk 0:01:52]} 18. Rfc1 {[%clk 0:02:20]}  Qxc1+ {[%clk 0:01:40]} 19. Rxc1 {[%clk 0:02:20]}  Rxc1+ {[%clk 0:01:41]} 20. Kf2 {[%clk 0:02:20]}  Rc2 {[%clk 0:01:39]} 21. Ke3 {[%clk 0:02:20]}  Rc5 {[%clk 0:00:57]} 22. b4 {[%clk 0:02:18]}  Rc7 {[%clk 0:00:57]} 23. Qb6 {[%clk 0:02:13]}  Rfc8 {[%clk 0:00:57]} 24. Bd3 {[%clk 0:02:08]}  Kg7 {[%clk 0:00:55]} 25. g4 {[%clk 0:02:07]}  f6 {[%clk 0:00:53]} 26. h4 {[%clk 0:02:07]}  Be8 {[%clk 0:00:50]} 27. Kd4 {[%clk 0:02:06]}  Bf7 {[%clk 0:00:36]} 28. g5 {[%clk 0:02:05]}  fxg5 {[%clk 0:00:25]} 29. hxg5 {[%clk 0:02:04]}  h6 {[%clk 0:00:25]} 30. gxh6+ {[%clk 0:02:03]}  Kxh6 {[%clk 0:00:26]} 31. f4 {[%clk 0:02:00]}  g5 {[%clk 0:00:20]} 32. e5 {[%clk 0:02:00]}  gxf4 {[%clk 0:00:17]} 33. exd6 {[%clk 0:01:59]}  exd6 {[%clk 0:00:18]} 34. Qxd6+ {[%clk 0:01:58]}  Kg7 {[%clk 0:00:19]} 35. Qxf4 {[%clk 0:01:55]}  Rc1 {[%clk 0:00:14]} 36. d6 {[%clk 0:01:44]}  R1c4+ {[%clk 0:00:10]} 37. Bxc4 {[%clk 0:01:44]}  Rxc4+ {[%clk 0:00:11]} 38. Ke3 {[%clk 0:01:45]}  Rxf4 {[%clk 0:00:11]} 39. Kxf4 {[%clk 0:01:45]}  Be6 {[%clk 0:00:11]} 40. Ke5 {[%clk 0:01:45]}  Kf7 {[%clk 0:00:11]} 41. Kd4 {[%clk 0:01:43]}  Ke8 {[%clk 0:00:11]} 42. Kc5 {[%clk 0:01:43]}  Kd7 {[%clk 0:00:12]} 43. Kb6 {[%clk 0:01:43]}  Bd5 {[%clk 0:00:12]} 44. Kc5 {[%clk 0:01:44]}  Bc6 {[%clk 0:00:12]} 45. Kb6 {[%clk 0:01:39]}  Kxd6 {[%clk 0:00:12]} 46. b5 {[%clk 0:01:39]}  Bxb5 {[%clk 0:00:12]} 47. Kxb7 {[%clk 0:01:40]}  Kc5 {[%clk 0:00:11]} 48. Kc7 {[%clk 0:01:40]}  Bc4 {[%clk 0:00:10]} 49. Kd7 {[%clk 0:01:40]}  Bd5 {[%clk 0:00:09]} 50. Ke7 {[%clk 0:01:39]}  Kb4 {[%clk 0:00:09]} 51. Kd6 {[%clk 0:01:40]}  Kxa5 {[%clk 0:00:09]} 52. Kxd5 {[%clk 0:01:39]}  Kb4 {[%clk 0:00:09]} 53. Kd4 {[%clk 0:01:40]}  a5 {[%clk 0:00:09]} 54. Kd3 {[%clk 0:01:40]}  Kb3 {[%clk 0:00:10]} 55. Kd2 {[%clk 0:01:38]}  Kb2 {[%clk 0:00:10]} 0-1


[Site "https://www.chess.com"]

[Event "Titled Tuesday Blitz May 16 Early 2023"]
[White "brm72"]
[Black "Nastase, Robert-Paul"]
[BlackFideId "1221175"]
[WhiteElo "2540"]
[BlackElo "2175"]
[Result "0-1"]
[Round "03"]
[TimeControl "180+2"]
[Date "2023.05.16"]
[WhiteClock "0:00:07"]
[BlackClock "0:00:25"]

1. e4 {[%clk 0:03:00]}  c5 {[%clk 0:02:58]} 2. Nf3 {[%clk 0:03:00]}  d6 {[%clk 0:02:58]} 3. d4 {[%clk 0:03:00]}  cxd4 {[%clk 0:02:59]} 4. Nxd4 {[%clk 0:03:01]}  Nf6 {[%clk 0:02:59]} 5. Nc3 {[%clk 0:03:02]}  a6 {[%clk 0:03:00]} 6. Bg5 {[%clk 0:03:01]}  e6 {[%clk 0:03:00]} 7. f4 {[%clk 0:03:02]}  Nbd7 {[%clk 0:02:59]} 8. Qf3 {[%clk 0:03:02]}  Qc7 {[%clk 0:03:00]} 9. O-O-O {[%clk 0:03:02]}  b5 {[%clk 0:03:00]} 10. Bd3 {[%clk 0:03:02]}  Bb7 {[%clk 0:03:00]} 11. Rhe1 {[%clk 0:02:58]}  Qb6 {[%clk 0:03:00]} 12. Nb3 {[%clk 0:02:41]}  Rc8 {[%clk 0:02:54]} 13. Kb1 {[%clk 0:02:06]}  b4 {[%clk 0:02:04]} 14. Ne2 {[%clk 0:01:57]}  a5 {[%clk 0:02:05]} 15. Nbd4 {[%clk 0:01:53]}  a4 {[%clk 0:02:03]} 16. g4 {[%clk 0:01:42]}  Be7 {[%clk 0:01:40]} 17. Bxf6 {[%clk 0:01:37]}  Bxf6 {[%clk 0:01:38]} 18. Bb5 {[%clk 0:01:37]}  Ke7 {[%clk 0:01:27]} 19. g5 {[%clk 0:01:26]}  Bxd4 {[%clk 0:01:26]} 20. Nxd4 {[%clk 0:01:26]}  Nc5 {[%clk 0:01:26]} 21. h4 {[%clk 0:00:49]}  g6 {[%clk 0:01:20]} 22. Bf1 {[%clk 0:00:39]}  Rhd8 {[%clk 0:01:01]} 23. Bg2 {[%clk 0:00:33]}  d5 {[%clk 0:00:42]} 24. e5 {[%clk 0:00:30]}  Ne4 {[%clk 0:00:37]} 25. Ne2 {[%clk 0:00:18]}  Rc4 {[%clk 0:00:31]} 26. Ka1 {[%clk 0:00:16]}  Rxc2 {[%clk 0:00:30]} 27. h5 {[%clk 0:00:15]}  b3 {[%clk 0:00:27]} 28. a3 {[%clk 0:00:13]}  Rdc8 {[%clk 0:00:26]} 29. hxg6 {[%clk 0:00:13]}  hxg6 {[%clk 0:00:26]} 30. Qd3 {[%clk 0:00:11]}  Ba6 {[%clk 0:00:26]} 31. Qf3 {[%clk 0:00:08]}  Bxe2 {[%clk 0:00:25]} 32. Rxe2 {[%clk 0:00:07]}  Rc1+ {[%clk 0:00:25]} 0-1


[Site "https://www.chess.com"]